bitfinex/quotes_SOLUSD_20240711
["timestamp","ask_amount","ask_price","bid_price","bid_amount"]
[1720712102045,7.35415019,140.25,140.08,17.8464]
[1720712102245,7.35415019,140.25,140.07,100.0]
[1720712102459,7.1338,140.18,140.11,7.1371]
[1720712102638,7.1323,140.21,140.14,7.1356]
[1720712102844,7.1323,140.21,140.09,135.6893]
[1720712102845,7.1317,140.22,140.15,7.1351]
[1720712103040,7.35415019,140.25,140.14,17.8387]
[1720712103274,7.1314,140.23,140.15,7.1348]
[1720712103465,7.1318,140.22,140.14,24.9742]
[1720712103639,7.1318,140.22,140.15,7.1351]
[1720712103840,7.1321,140.21,140.14,17.8387]
[1720712104061,7.1321,140.21,140.14,24.9743]
[1720712104374,7.1317,140.22,140.15,7.1351]
[1720712104539,45.0,140.21,140.14,17.8387]
[1720712104740,45.0,140.21,140.08,100.0]
[1720712104942,7.1343,140.17,140.08,117.8462]
[1720712105162,7.1343,140.17,140.05,665.4802]
[1720712105163,45.0,140.21,140.05,408.9802]
[1720712105346,6.314,140.17,140.08,7.1387]
[1720712105540,45.0,140.16,140.09,7.1378]
[1720712105739,45.0,140.16,140.1,7.1374]
[1720712105957,45.0,140.16,140.06,100.0]
[1720712106155,7.1331,140.2,140.12,7.1365]
[1720712106370,6.319,140.21,140.12,7.1365]
[1720712106568,17.8329,140.19,140.06,100.0]
[1720712106756,45.0,140.18,140.07,17.8479]
[1720712106957,62.8324,140.2,140.07,17.8479]
[1720712106958,7.1348,140.16,140.07,17.8479]
[1720712107160,7.1348,140.16,140.06,100.0]
[1720712107161,7.134,140.18,140.1,7.1376]
[1720712107362,52.1342,140.17,140.1,7.1376]
[1720712107549,7.1342,140.17,140.1,7.1376]
[1720712107750,45.0,140.2,140.09,117.8452]
[1720712108157,7.1335,140.19,140.12,7.1366]
[1720712108359,45.0,140.18,140.12,7.1366]
[1720712108594,6.319,140.21,140.13,17.8397]
[1720712108871,13.4513,140.21,140.14,7.1352]
[1720712109067,7.1323,140.21,140.14,7.1352]
[1720712109970,7.1317,140.22,140.15,7.1352]
[1720712110753,7.1324,140.21,140.14,100.0]
[1720712110952,17.8284,140.23,140.13,28.7215]
[1720712111276,7.1327,140.2,140.13,28.7215]
[1720712111467,7.1323,140.21,140.14,7.1356]
[1720712111663,45.0,140.2,140.15,7.1351]
[1720712111973,9.09353958,140.25,140.16,7.1345]
[1720712111974,7.1311,140.23,140.16,7.1345]
[1720712112350,13.2829,140.25,140.17,7.1339]
[1720712112548,6.1524,140.25,140.18,7.1333]
[1720712112767,19.46178506,140.27,140.18,7.1333]
[1720712112948,7.1303,140.25,140.18,24.9673]
[1720712113145,2.94418506,140.27,140.18,17.8338]
[1720712113366,24.0853,140.29,140.18,17.8338]
[1720712113544,7.1305,140.25,140.18,24.9673]
[1720712114169,9.13367451,140.29,140.2,17.8313]
[1720712114368,7.1291,140.27,140.2,24.9639]
[1720712114587,7.1291,140.27,140.21,16.3314]
[1720712114750,7.1296,140.26,140.21,16.3314]
[1720712115380,7.1291,140.27,140.21,16.3314]
[1720712115881,45.0,140.26,140.21,16.3314]
[1720712116057,9.99747451,140.29,140.22,7.1316]
[1720712116262,16.6299,140.31,140.21,40.5119]
[1720712116559,7.129,140.28,140.21,47.6439]
[1720712116759,7.1291,140.27,140.21,40.5119]
[1720712117074,7.1287,140.28,140.21,22.682]
[1720712117368,7.1287,140.28,140.21,29.814]
[1720712117672,7.1282,140.29,140.22,7.1316]
[1720712118053,45.0,140.28,140.22,7.1316]
[1720712118261,45.0,140.28,140.21,22.682]
[1720712118262,52.1286,140.28,140.21,29.814]
[1720712118456,45.0,140.28,140.22,7.1316]
[1720712118663,45.0,140.28,140.23,7.1311]
[1720712118872,45.0,140.29,140.23,7.1311]
[1720712119788,2.92783356,140.31,140.26,7.1295]
[1720712119952,7.1266,140.32,140.25,7.13]
[1720712120269,7.1257,140.34,140.27,7.1291]
[1720712120450,7.4271568,140.36,140.24,17.8258]
[1720712120650,7.4271568,140.36,140.26,17.8236]
[1720712121050,7.1261,140.33,140.26,24.953]
[1720712121570,10.3245441,140.36,140.26,17.8236]
[1720712121765,7.1264,140.33,140.26,24.953]
[1720712121987,7.1266,140.32,140.26,17.8236]
[1720712122157,7.1262,140.33,140.26,24.9531]
[1720712122352,7.1267,140.32,140.26,17.8236]
[1720712122688,7.1275,140.3,140.23,24.9578]
[1720712122845,7.1281,140.29,140.23,17.8272]
[1720712123050,7.1276,140.3,140.23,24.9583]
[1720712123477,7.1284,140.29,140.22,7.1314]
[1720712123659,45.0,140.29,140.21,22.682]
[1720712123862,7.1293,140.27,140.21,22.682]
[1720712124171,52.1296,140.26,140.21,16.3314]
[1720712124478,35.6308,140.33,140.13,422.9809]
[1720712124479,7.1309,140.24,140.17,28.8496]
[1720712124657,7.1309,140.24,140.18,7.1336]
[1720712124980,7.1303,140.25,140.18,7.1336]
[1720712125176,45.0,140.24,140.18,7.1336]
[1720712125873,7.1295,140.27,140.18,17.8333]
[1720712126082,23.9165,140.29,140.17,21.7156]
[1720712126083,45.0,140.26,140.17,21.7156]
[1720712126279,45.0,140.27,140.21,7.132]
[1720712126585,7.1296,140.26,140.19,7.1331]
[1720712126788,7.1301,140.25,140.19,7.1331]
[1720712127084,7.1297,140.26,140.19,7.133]
[1720712127295,45.0,140.25,140.19,7.133]
[1720712127779,45.0,140.25,140.17,39.5502]
[1720712127780,52.1303,140.25,140.18,7.1336]
[1720712127981,45.0,140.25,140.19,7.133]
[1720712128190,6.0952,140.29,140.2,7.1325]
[1720712128191,7.1292,140.27,140.2,7.1325]
[1720712128388,2.95035758,140.29,140.21,17.8302]
[1720712128560,2.95035758,140.29,140.17,21.7156]
[1720712128561,7.1296,140.26,140.19,7.133]
[1720712128762,7.1305,140.25,140.18,17.8331]
[1720712128961,7.1292,140.27,140.2,7.1326]
[1720712129163,2.89462507,140.31,140.2,17.8314]
[1720712129366,7.1281,140.29,140.22,7.1311]
[1720712129579,7.1285,140.29,140.22,24.9601]
[1720712129781,7.1285,140.29,140.23,7.1311]
[1720712130287,26.98666151,140.32,140.22,24.9601]
[1720712130472,7.1277,140.3,140.23,7.1309]
[1720712130791,7.1277,140.3,140.22,17.8286]
[1720712130970,7.1277,140.3,140.23,7.1307]
[1720712131168,7.1289,140.28,140.2,7.1321]
[1720712131496,7.1282,140.29,140.21,17.8302]
[1720712131680,7.1282,140.29,140.22,7.1313]
[1720712131868,45.0,140.28,140.22,7.1315]
[1720712132392,52.1287,140.28,140.21,24.9622]
[1720712132891,45.0,140.28,140.22,7.1314]
[1720712133195,45.0,140.28,140.23,7.131]
[1720712133370,45.0,140.29,140.23,17.8273]
[1720712133576,7.1275,140.3,140.23,24.958]
[1720712133781,7.1283,140.29,140.22,7.1315]
[1720712133982,7.1287,140.28,140.21,7.132]
[1720712134481,7.1292,140.27,140.2,24.9628]
[1720712134893,45.0,140.26,140.2,24.9628]
[1720712135106,45.0,140.26,140.21,7.132]
[1720712135487,9.16916151,140.32,140.23,7.1311]
[1720712135787,45.0,140.31,140.23,7.1309]
[1720712135992,7.1277,140.3,140.23,7.1309]
[1720712136303,26.98576151,140.32,140.22,24.9604]
[1720712136500,7.1287,140.28,140.22,17.8288]
[1720712137386,45.0,140.27,140.22,17.8288]
[1720712137905,52.1291,140.27,140.2,7.1324]
[1720712138282,52.1291,140.27,140.22,7.1315]
[1720712138283,45.0,140.27,140.22,7.1315]
[1720712138696,52.129,140.28,140.21,24.9623]
[1720712139690,45.0,140.28,140.21,17.8303]
[1720712140198,52.1287,140.28,140.22,7.1313]
[1720712140380,52.1287,140.28,140.21,24.9622]
[1720712140690,52.1287,140.28,140.21,24.9621]
[1720712141584,7.1291,140.27,140.2,7.1322]
[1720712141783,45.0,140.26,140.2,17.8314]
[1720712142189,45.0,140.26,140.2,24.9637]
[1720712142399,45.0,140.26,140.21,7.1321]
[1720712142586,45.0,140.27,140.22,7.1315]
[1720712142901,45.0,140.27,140.2,17.8314]
[1720712142902,7.1291,140.27,140.21,7.1319]
[1720712143106,45.0,140.26,140.21,7.1319]
[1720712144090,45.0,140.27,140.21,7.1319]
[1720712144604,7.1307,140.24,140.17,46.684]
[1720712144839,45.0,140.23,140.18,30.0]
[1720712145103,78.4526,140.27,140.18,37.1335]
[1720712145104,7.1302,140.25,140.18,37.1335]
[1720712145305,7.1297,140.26,140.19,24.9659]
[1720712145611,45.0,140.25,140.2,7.1326]
[1720712145912,7.1296,140.26,140.2,7.1326]
[1720712146202,52.1301,140.25,140.19,24.9658]
[1720712146603,17.8203,140.29,140.2,7.1324]
[1720712147413,7.1291,140.27,140.21,7.1321]
[1720712147788,7.1291,140.27,140.2,7.1324]
[1720712147989,45.0,140.26,140.2,7.1324]
[1720712148195,45.0,140.26,140.21,7.1319]
[1720712148715,45.0,140.26,140.19,24.9657]
[1720712148716,7.13,140.26,140.19,24.9657]
[1720712148914,45.0,140.25,140.19,24.9657]
[1720712149295,45.0,140.25,140.2,7.1326]
[1720712149611,45.0,140.26,140.21,24.962]
[1720712149806,45.0,140.26,140.2,7.1324]
[1720712150218,52.1299,140.26,140.19,7.133]
[1720712150690,7.1304,140.25,140.18,24.9665]
[1720712150895,52.1298,140.26,140.19,7.133]
[1720712151090,7.1302,140.25,140.19,7.133]
[1720712151410,45.0,140.24,140.19,7.133]
[1720712151612,52.1298,140.26,140.18,24.9661]
[1720712151613,45.0,140.26,140.18,24.9661]
[1720712151910,45.0,140.27,140.18,24.9661]
[1720712152112,7.1304,140.25,140.18,24.9661]
[1720712152418,45.0,140.24,140.18,17.833]
[1720712152614,45.0,140.24,140.18,24.9664]
[1720712153215,45.0,140.24,140.18,17.833]
[1720712153417,52.1307,140.24,140.18,17.833]
[1720712153619,52.1307,140.24,140.17,15.1164]
[1720712153620,7.1312,140.23,140.17,15.1164]
[1720712153808,52.1317,140.22,140.15,24.9719]
[1720712154006,45.0,140.21,140.15,24.9719]
[1720712155001,52.1323,140.21,140.15,24.9719]
[1720712155208,45.0,140.21,140.14,23.7893]
[1720712156697,7.1327,140.2,140.14,23.7893]
[1720712156891,52.1321,140.21,140.15,7.1351]
[1720712158002,45.0,140.21,140.16,7.1347]
[1720712158208,45.0,140.21,140.15,7.135]
[1720712158628,7.1307,140.24,140.16,17.8361]
[1720712158801,7.1307,140.24,140.18,7.1336]
[1720712159119,29.4086,140.25,140.18,7.1336]
[1720712159330,13.3045,140.25,140.18,24.9677]
[1720712159697,7.1297,140.26,140.18,117.8341]
[1720712160035,4.98,140.27,140.2,17.8313]
[1720712160323,4.98,140.27,140.22,17.829]
[1720712160509,4.98,140.27,140.23,8.55669871]
[1720712160710,4.98,140.27,140.22,40.4144]
[1720712160914,4.98,140.27,140.22,33.283]
[1720712161530,12.1094,140.27,140.2,7.1323]
[1720712161696,4.98,140.27,140.17,100.0]
[1720712161902,7.1309,140.24,140.17,100.0]
[1720712162095,7.1326,140.21,140.15,22.9706]
[1720712162504,7.1317,140.22,140.15,30.1057]
[1720712162717,45.0,140.21,140.15,47.9434]
[1720712162918,45.0,140.21,140.16,7.1342]
[1720712163119,52.1316,140.22,140.15,47.9434]
[1720712163421,7.1321,140.21,140.15,34.179]
[1720712163626,45.0,140.2,140.15,34.179]
[1720712163846,45.0,140.2,140.15,41.3141]
[1720712164014,15.1125,140.24,140.18,7.1336]
[1720712164220,15.1125,140.24,140.17,24.9692]
[1720712164221,45.0,140.23,140.17,24.9692]
[1720712164517,7.1317,140.22,140.15,23.4762]
[1720712164725,45.0,140.21,140.15,23.4762]
[1720712165229,52.1322,140.21,140.15,16.3412]
[1720712165421,45.0,140.21,140.15,16.3412]
[1720712165731,45.0,140.21,140.14,17.8381]
[1720712166099,52.1322,140.21,140.14,24.9734]
[1720712166518,7.1329,140.2,140.13,7.1361]
[1720712166724,45.0,140.19,140.13,7.1361]
[1720712167028,7.1327,140.2,140.13,7.1361]
[1720712167232,45.0,140.19,140.13,7.1361]
[1720712167536,45.0,140.19,140.13,24.9763]
[1720712167742,45.0,140.19,140.14,7.1353]
[1720712167904,45.0,140.2,140.15,7.1351]
[1720712168104,15.1125,140.24,140.15,17.8376]
[1720712168315,22.2435,140.24,140.17,7.1339]
[1720712168531,7.1311,140.23,140.16,7.1346]
[1720712168740,7.1321,140.21,140.15,17.8376]
[1720712169052,7.1316,140.23,140.16,7.1343]
[1720712169207,7.1316,140.23,140.15,17.8376]
[1720712169530,7.1317,140.22,140.15,24.9725]
[1720712169710,7.1317,140.22,140.16,7.1347]
[1720712169906,7.1313,140.23,140.16,7.1347]
[1720712170101,22.2431,140.24,140.17,7.1341]
[1720712170344,7.1306,140.24,140.17,17.8352]
[1720712170504,7.1312,140.23,140.17,24.969]
[1720712170905,9.00437648,140.26,140.19,17.8325]
[1720712171148,7.1301,140.25,140.19,17.8325]
[1720712171437,7.1306,140.24,140.17,7.1338]
[1720712171615,9.00437648,140.26,140.17,7.1338]
[1720712171616,7.1312,140.23,140.17,7.1338]
[1720712171814,7.1308,140.24,140.17,7.1338]
[1720712172026,7.1312,140.23,140.16,24.97]
[1720712172462,7.1312,140.23,140.17,7.134]
[1720712172625,7.1312,140.23,140.16,17.8357]
[1720712172626,26.82847648,140.26,140.16,17.8357]
[1720712172943,45.0,140.25,140.16,17.8357]
[1720712173249,7.1309,140.24,140.17,7.1338]
[1720712173420,45.0,140.23,140.17,7.1338]
[1720712173744,52.1312,140.23,140.17,7.1338]
[1720712174048,52.1312,140.23,140.16,24.9702]
[1720712174426,52.1312,140.23,140.17,7.1341]
[1720712174630,7.1316,140.22,140.16,17.8357]
[1720712175162,52.1312,140.23,140.16,24.9703]
[1720712175337,45.0,140.23,140.17,7.134]
[1720712175660,45.0,140.23,140.18,7.1336]
[1720712175844,45.0,140.23,140.17,7.1339]
[1720712176040,45.0,140.23,140.18,7.1336]
[1720712176351,16.13437648,140.26,140.19,7.1328]
[1720712176534,10.03217648,140.26,140.18,17.8337]
[1720712176735,10.03217648,140.26,140.19,7.133]
[1720712177128,2.90217648,140.26,140.2,7.1326]
[1720712177336,12.1093,140.27,140.2,7.1326]
[1720712177826,7.1297,140.26,140.2,24.9642]
[1720712178039,7.1297,140.26,140.2,17.8316]
[1720712178242,4.98,140.27,140.17,146.8657]
[1720712178243,7.1309,140.24,140.17,146.8657]
[1720712178427,7.1313,140.23,140.17,140.6944]
[1720712178751,7.1313,140.23,140.17,40.6943]
[1720712178964,7.1308,140.24,140.17,40.6943]
[1720712179247,45.0,140.23,140.17,40.6943]
[1720712179647,45.0,140.23,140.17,40.694]
[1720712180446,15.05219275,140.27,140.19,17.8323]
[1720712180640,7.92269275,140.27,140.19,17.8323]
[1720712180949,7.1306,140.24,140.18,7.1332]
[1720712181250,45.0,140.23,140.18,7.1332]
[1720712181427,15.05229275,140.27,140.19,24.9657]
[1720712181628,7.92269275,140.27,140.19,24.9657]
[1720712181836,52.1297,140.26,140.2,7.1326]
[1720712182257,7.92269275,140.27,140.19,17.8328]
[1720712182630,15.05209275,140.27,140.2,7.1322]
[1720712182825,7.92269275,140.27,140.2,7.1322]
[1720712183125,15.05199275,140.27,140.2,7.1322]
[1720712183324,7.92269275,140.27,140.21,17.8301]
[1720712183537,7.92269275,140.27,140.22,7.1313]
[1720712183740,4.98,140.27,140.22,7.1313]
[1720712184338,4.98,140.27,140.22,7.1311]
[1720712184540,4.98,140.27,140.21,31.5303]
[1720712184927,4.98,140.27,140.21,24.3984]
[1720712185127,4.98,140.27,140.23,7.131]
[1720712185330,4.98,140.27,140.23,17.8278]
[1720712185669,4.98,140.27,140.26,7.1296]
[1720712186031,4.98,140.27,140.25,24.9549]
[1720712186643,4.98,140.27,140.26,7.1296]
[1720712187349,4.98,140.27,140.25,24.955]
[1720712188047,4.98,140.27,140.26,7.1296]
[1720712188247,4.98,140.27,140.25,24.9549]
[1720712188635,4.98,140.27,140.26,7.1296]
[1720712190945,4.98,140.27,140.26,8.53478856]
[1720712191159,4.98,140.27,140.26,7.1296]
[1720712193142,0.8261568,140.36,140.3,17.8189]
[1720712193344,7.9508568,140.36,140.3,17.8189]
[1720712193565,7.9508568,140.36,140.3,24.9464]
[1720712193750,7.9506568,140.36,140.3,17.8189]
[1720712193941,0.8261568,140.36,140.3,24.9464]
[1720712194450,0.8261568,140.36,140.3,24.9463]
[1720712194773,0.8261568,140.36,140.29,23.3285]
[1720712195063,7.1251,140.35,140.29,16.2005]
[1720712195670,0.8261568,140.36,140.29,23.3284]
[1720712195671,7.9508568,140.36,140.29,23.3284]
[1720712195878,0.8261568,140.36,140.3,7.1274]
[1720712196163,3.70737742,140.36,140.32,7.1261]
[1720712196365,0.8261568,140.36,140.31,24.9443]
[1720712196539,0.8261568,140.36,140.29,16.2005]
[1720712196949,0.8261568,140.36,140.28,17.8206]
[1720712197647,7.9507568,140.36,140.29,7.128]
[1720712197848,0.8261568,140.36,140.28,17.8206]
[1720712198048,0.8261568,140.36,140.3,7.1274]
[1720712198364,45.8261568,140.36,140.3,7.1274]
[1720712198549,45.8261568,140.36,140.28,17.8206]
[1720712198550,0.8261568,140.36,140.28,17.8206]
[1720712198865,0.8261568,140.36,140.3,7.1275]
[1720712199063,7.9507568,140.36,140.29,7.128]
[1720712199274,0.8261568,140.36,140.3,7.1275]
[1720712199952,45.8261568,140.36,140.3,7.1275]
[1720712200149,0.8261568,140.36,140.31,7.1269]
[1720712200855,0.8261568,140.36,140.28,17.8206]
[1720712201151,7.9510568,140.36,140.29,7.1276]
[1720712201555,0.8261568,140.36,140.3,7.1274]
[1720712201767,7.9506568,140.36,140.28,17.8206]
[1720712201947,52.1251,140.35,140.28,17.8206]
[1720712202145,0.8261568,140.36,140.28,17.8206]
[1720712202663,7.9507568,140.36,140.29,7.1277]
[1720712202867,0.8261568,140.36,140.3,7.1274]
[1720712203452,0.8261568,140.36,140.28,17.8206]
[1720712203854,7.1255,140.34,140.26,123.1333]
[1720712204053,45.0,140.33,140.26,116.0042]
[1720712204369,17.3015568,140.36,140.27,17.8224]
[1720712204569,45.0,140.35,140.27,17.8224]
[1720712205545,52.125,140.35,140.28,7.1284]
[1720712206472,7.1256,140.34,140.28,7.1284]
[1720712206771,52.1264,140.33,140.26,23.1334]
[1720712206945,7.1261,140.33,140.26,16.0042]
[1720712207146,45.0,140.32,140.26,16.0042]
[1720712207347,45.0,140.32,140.26,23.1334]
[1720712207850,52.127,140.32,140.25,394.43]
[1720712208363,52.127,140.32,140.25,7.13]
[1720712209571,45.0,140.32,140.22,16.5023]
[1720712209770,7.1292,140.27,140.21,17.8297]
[1720712210088,45.0,140.26,140.18,33.3546]
[1720712210290,45.0,140.26,140.18,24.9671]
[1720712210291,7.1304,140.25,140.18,24.9671]
[1720712210479,45.0,140.24,140.15,33.3578]
[1720712210678,7.132,140.22,140.15,17.837]
[1720712210882,45.0,140.21,140.15,24.9718]
[1720712211187,45.0,140.21,140.15,17.837]
[1720712212074,7.1306,140.24,140.17,7.1337]
[1720712212292,45.0,140.23,140.17,7.1337]
[1720712212483,45.0,140.23,140.18,0.98063344]
[1720712212676,45.0,140.23,140.17,7.1337]
[1720712212999,52.1306,140.24,140.17,7.1337]
[1720712213170,15.0052,140.26,140.16,100.0]
[1720712213370,9.32207448,140.27,140.21,7.132]
[1720712213680,9.32207448,140.27,140.19,17.8324]
[1720712213981,9.32207448,140.27,140.21,7.132]
[1720712214293,16.45117448,140.27,140.2,7.1325]
[1720712216096,45.0,140.26,140.2,7.1325]
[1720712216598,52.1297,140.26,140.19,24.9655]
[1720712217169,7.1302,140.25,140.19,17.8324]
[1720712217369,45.0,140.24,140.19,24.9653]
[1720712217574,52.1296,140.26,140.19,24.9653]
[1720712218289,52.1296,140.26,140.2,7.1326]
[1720712218499,45.0,140.26,140.21,1.42602662]
[1720712219293,2.82717448,140.27,140.21,17.8298]
[1720712219500,16.4183,140.29,140.23,7.1311]
[1720712219795,23.5465,140.29,140.22,7.1315]
[1720712220174,7.1287,140.28,140.21,24.9618]
[1720712220503,7.1293,140.27,140.21,17.8298]
[1720712220789,52.1293,140.27,140.21,17.8298]
[1720712221097,6.3603,140.3,140.25,7.13]
[1720712221274,6.3603,140.3,140.23,24.9578]
[1720712221491,7.1284,140.29,140.22,7.1316]
[1720712221677,7.1295,140.27,140.2,24.9635]
[1720712222268,6.3603,140.3,140.2,17.8309]
[1720712222489,7.1282,140.29,140.22,7.1312]
[1720712222784,52.1282,140.29,140.22,7.1312]
[1720712222995,7.1286,140.28,140.22,7.1312]
[1720712223191,45.0,140.27,140.23,7.131]
[1720712223491,45.0,140.29,140.23,7.131]
[1720712223791,52.1282,140.29,140.23,7.131]
[1720712224170,7.1286,140.28,140.22,24.96]
[1720712224389,45.0,140.27,140.22,24.96]
[1720712224587,45.0,140.29,140.23,7.1307]
[1720712225296,45.0,140.29,140.25,7.13]
[1720712225597,6.3603,140.3,140.24,17.8262]
[1720712225598,6.3603,140.3,140.26,8.55451355]
[1720712225901,6.3603,140.3,140.26,1.42511355]
[1720712226490,26.40692332,140.32,140.25,7.1299]
[1720712226800,19.28022332,140.32,140.26,7.1294]
[1720712227009,19.28022332,140.32,140.26,17.8233]
[1720712227292,19.28022332,140.32,140.27,7.1289]
[1720712227293,2.94242332,140.32,140.27,7.1289]
[1720712227488,7.126,140.33,140.26,24.9527]
[1720712227791,36.31634926,140.34,140.23,39.9274]
[1720712227998,36.31634926,140.34,140.24,7.1304]
[1720712227999,7.1272,140.31,140.24,7.1304]
[1720712228180,7.1272,140.31,140.25,7.1301]
[1720712228369,8.92634926,140.34,140.25,17.825]
[1720712228571,45.0,140.33,140.23,22.1001]
[1720712228767,45.0,140.33,140.27,24.9512]
[1720712229491,8.92634926,140.34,140.27,17.8223]
[1720712229671,6.0114,140.34,140.27,17.8223]
[1720712230165,6.0114,140.34,140.28,7.1285]
[1720712230591,6.0114,140.34,140.29,7.1279]
[1720712230986,6.0114,140.34,140.28,7.1284]
[1720712231312,45.0,140.33,140.27,24.9512]
[1720712231795,45.0,140.33,140.28,7.1285]
[1720712232501,45.0,140.33,140.29,7.1279]
[1720712232987,21.32320768,140.35,140.29,7.1279]
[1720712233188,45.0,140.34,140.29,7.1279]
[1720712233491,45.0,140.34,140.3,7.1275]
[1720712234383,5.46290768,140.35,140.3,7.1274]
[1720712235875,12.58810768,140.35,140.29,24.9479]
[1720712236080,45.0,140.34,140.29,24.9479]
[1720712236275,45.0,140.34,140.3,7.1274]
[1720712236579,5.46290768,140.35,140.3,7.1274]
[1720712236978,5.46290768,140.35,140.29,24.9479]
[1720712237182,5.46290768,140.35,140.3,7.1275]
[1720712237486,5.46290768,140.35,140.29,24.9479]
[1720712237701,45.0,140.34,140.29,24.9479]
[1720712238080,45.0,140.34,140.3,30.0]
[1720712238499,7.1267,140.32,140.3,30.0]
[1720712238677,45.0,140.31,140.3,14.02808406]
[1720712239005,45.0,140.31,140.26,17.8234]
[1720712239181,45.0,140.32,140.26,24.9526]
[1720712239508,52.1266,140.32,140.26,17.8234]
[1720712239683,45.0,140.32,140.26,24.9529]
[1720712240283,45.0,140.32,140.27,7.1289]
[1720712240701,52.1266,140.32,140.26,24.9528]
[1720712241199,45.0,140.32,140.27,7.1289]
[1720712241792,45.0,140.32,140.25,7.1296]
[1720712241793,7.1271,140.31,140.25,7.1296]
[1720712242100,45.0,140.3,140.25,7.1296]
[1720712242817,45.0,140.3,140.24,7.1304]
[1720712242992,45.0,140.3,140.25,7.1301]
[1720712243191,45.0,140.3,140.26,7.1295]
[1720712243385,45.0,140.31,140.27,7.129]
[1720712243587,45.0,140.32,140.27,17.8225]
[1720712243799,45.0,140.32,140.27,24.9512]
[1720712244005,15.6969,140.33,140.28,7.1282]
[1720712244207,15.6969,140.33,140.27,17.8225]
[1720712244208,12.58840768,140.35,140.27,17.8225]
[1720712244381,5.46290768,140.35,140.29,17.8201]
[1720712244703,12.58790768,140.35,140.29,17.8201]
[1720712244919,5.46290768,140.35,140.29,17.8201]
[1720712245205,7.1256,140.34,140.28,7.1284]
[1720712245498,7.1256,140.34,140.27,7.1289]
[1720712246099,45.0,140.33,140.26,24.9524]
[1720712246335,52.126,140.34,140.27,7.77209453]
[1720712246520,7.1264,140.33,140.27,7.129]
[1720712246730,45.0,140.32,140.28,7.1285]
[1720712247031,45.0,140.34,140.28,24.9496]
[1720712247238,45.0,140.34,140.28,17.8214]
[1720712247610,5.46290768,140.35,140.29,7.1279]
[1720712247927,5.46290768,140.35,140.28,17.8214]
[1720712248228,12.58800768,140.35,140.28,17.8214]
[1720712248433,7.1256,140.34,140.28,17.8214]
[1720712248735,12.58800768,140.35,140.29,1.42540133]
[1720712248904,45.0,140.34,140.29,1.42540133]
[1720712249108,45.0,140.34,140.29,8.55340133]
[1720712249439,45.0,140.34,140.29,1.42527656]
[1720712249725,45.0,140.34,140.28,24.9497]
[1720712249959,52.1256,140.34,140.28,17.8214]
[1720712250102,52.1256,140.34,140.28,24.9499]
[1720712250306,45.0,140.34,140.28,24.9499]
[1720712250613,7.1259,140.34,140.28,17.8214]
[1720712250806,7.1265,140.33,140.25,17.8242]
[1720712251004,7.1265,140.33,140.23,149.4901]
[1720712251005,12.58810768,140.35,140.28,7.1282]
[1720712251207,12.58800768,140.35,140.28,7.1282]
[1720712251429,5.46290768,140.35,140.29,7.128]
[1720712252613,5.46290768,140.35,140.29,17.8198]
[1720712253038,45.0,140.34,140.29,17.8198]
[1720712253236,5.46290768,140.35,140.3,7.1274]
[1720712253448,5.46290768,140.35,140.31,24.944]
[1720712254332,5.46290768,140.35,140.28,17.8203]
[1720712254532,5.46290768,140.35,140.29,7.1278]